[Event "GrandPrix_29.05"]
[Site "Chess.com"]
[Date "2020.05.29"]
[Round "5"]
[White "MilosJi"]
[Black "Bestromano"]
[Result "0-1"]
[WhiteElo "2037"]
[BlackElo "2172"]
[TimeControl "600+2"]
[EndTime "11:35:01 PDT"]
[Termination "Bestromano won on time"]

1. Nf3 {[%clk 0:10:01.9]} 1... g6 {[%clk 0:10:00.4]} 2. g3 {[%clk 0:10:01.8]}
2... Bg7 {[%clk 0:10:02.3]} 3. Bg2 {[%clk 0:10:02.8]} 3... c5 {[%clk 0:10:04]}
4. O-O {[%clk 0:10:03.2]} 4... Nc6 {[%clk 0:10:05.6]} 5. c4 {[%clk 0:10:04.3]}
5... d6 {[%clk 0:10:05.5]} 6. Nc3 {[%clk 0:10:05.1]} 6... Nh6 {[%clk 0:10:07.2]}
7. e4 {[%clk 0:10:00.7]} 7... O-O {[%clk 0:10:06.4]} 8. d3 {[%clk 0:10:01.5]}
8... f5 {[%clk 0:10:01.6]} 9. h3 {[%clk 0:09:46.6]} 9... Nf7 {[%clk 0:09:42.2]}
10. Be3 {[%clk 0:09:43.3]} 10... e5 {[%clk 0:09:40.2]} 11. Qd2 {[%clk
0:09:39.9]} 11... Nd4 {[%clk 0:09:39.2]} 12. Nh2 {[%clk 0:09:35.3]} 12... Be6
{[%clk 0:09:24.1]} 13. exf5 {[%clk 0:09:17.1]} 13... Bxf5 {[%clk 0:09:17.2]} 14.
g4 {[%clk 0:09:16.1]} 14... Bc8 {[%clk 0:09:12]} 15. Rae1 {[%clk 0:08:42.8]}
15... Rb8 {[%clk 0:09:06.7]} 16. b3 {[%clk 0:08:42.3]} 16... g5 {[%clk
0:08:13.9]} 17. Ne4 {[%clk 0:08:15]} 17... h6 {[%clk 0:08:10.9]} 18. Nf3 {[%clk
0:08:04.7]} 18... Ne6 {[%clk 0:07:50]} 19. Qd1 {[%clk 0:07:55.6]} 19... Nh8
{[%clk 0:07:48.1]} 20. Nfd2 {[%clk 0:07:47.4]} 20... Ng6 {[%clk 0:07:47.4]} 21.
Nc3 {[%clk 0:07:42.5]} 21... Nef4 {[%clk 0:07:41.9]} 22. Kh2 {[%clk 0:07:39.8]}
22... Nxg2 {[%clk 0:07:29.4]} 23. Kxg2 {[%clk 0:07:40]} 23... Nh4+ {[%clk
0:07:29.4]} 24. Kg3 {[%clk 0:07:38.3]} 24... b6 {[%clk 0:07:24.7]} 25. Nce4
{[%clk 0:07:38.4]} 25... Bb7 {[%clk 0:07:21]} 26. f3 {[%clk 0:07:38.8]} 26...
Qe7 {[%clk 0:07:14.8]} 27. Qe2 {[%clk 0:07:32.4]} 27... Rf7 {[%clk 0:07:13.8]}
28. Rf2 {[%clk 0:07:33.1]} 28... Rbf8 {[%clk 0:07:15.2]} 29. Ref1 {[%clk
0:07:33.9]} 29... Ng6 {[%clk 0:06:43.8]} 30. Nc3 {[%clk 0:07:21]} 30... Nf4
{[%clk 0:06:17.5]} 31. Qd1 {[%clk 0:07:00.1]} 31... Nxd3 {[%clk 0:06:12.7]} 32.
Re2 {[%clk 0:06:54.9]} 32... Nf4 {[%clk 0:05:49.9]} 33. Bxf4 {[%clk 0:06:46.5]}
33... gxf4+ {[%clk 0:05:23]} 34. Kg2 {[%clk 0:06:41.4]} 34... Rd8 {[%clk
0:04:49.6]} 35. Nde4 {[%clk 0:06:41]} 35... Bf8 {[%clk 0:04:32.1]} 36. Nd5
{[%clk 0:06:41.6]} 36... Qh4 {[%clk 0:04:23.2]} 37. Rd2 {[%clk 0:06:42]} 37...
Bxd5 {[%clk 0:04:05.5]} 38. Rxd5 {[%clk 0:06:14.2]} 38... Rg7 {[%clk 0:04:05.8]}
39. Qe1 {[%clk 0:06:12.8]} 39... Qxe1 {[%clk 0:04:03.5]} 40. Rxe1 {[%clk
0:06:13.6]} 40... Kf7 {[%clk 0:04:00.7]} 41. h4 {[%clk 0:06:10.4]} 41... Ke6
{[%clk 0:04:01.7]} 42. Kh3 {[%clk 0:06:08.4]} 42... Be7 {[%clk 0:03:58.6]} 43.
Nc3 {[%clk 0:06:07.9]} 43... h5 {[%clk 0:03:41.7]} 44. g5 {[%clk 0:05:57.9]}
44... Rg6 {[%clk 0:03:23.8]} 45. Rd3 {[%clk 0:05:55.9]} 45... Kf7 {[%clk
0:03:09.1]} 46. Nb5 {[%clk 0:05:49.3]} 46... Ke6 {[%clk 0:02:40.1]} 47. Re2
{[%clk 0:05:45.5]} 47... Kf5 {[%clk 0:02:36.2]} 48. Nxa7 {[%clk 0:05:32.5]}
48... Ra8 {[%clk 0:02:30.4]} 49. Nb5 {[%clk 0:05:32.1]} 49... Rc8 {[%clk
0:02:21.6]} 50. Nc3 {[%clk 0:05:18.5]} 50... Bf8 {[%clk 0:01:41]} 51. Kg2 {[%clk
0:05:06.3]} 51... Rb8 {[%clk 0:01:38.8]} 52. Kf1 {[%clk 0:05:06.3]} 52... Re6
{[%clk 0:01:34.2]} 53. Ke1 {[%clk 0:05:05.9]} 53... Bg7 {[%clk 0:01:34.6]} 54.
Kd1 {[%clk 0:05:06.4]} 54... e4 {[%clk 0:01:32.1]} 55. Nxe4 {[%clk 0:05:05.1]}
55... Bd4 {[%clk 0:01:31.1]} 56. Kc2 {[%clk 0:05:01.1]} 56... Rbe8 {[%clk
0:01:29.9]} 57. a4 {[%clk 0:05:00.9]} 57... Kg6 {[%clk 0:01:20.3]} 58. b4 {[%clk
0:04:57.4]} 58... Kf5 {[%clk 0:01:19.5]} 59. Kb3 {[%clk 0:04:57.6]} 59... Kg6
{[%clk 0:01:19.9]} 60. Ra2 {[%clk 0:04:55]} 60... Kf5 {[%clk 0:01:17.7]} 61. a5
{[%clk 0:04:34.4]} 61... bxa5 {[%clk 0:01:19.6]} 62. bxa5 {[%clk 0:04:29.4]}
62... Rb8+ {[%clk 0:00:46.5]} 63. Kc2 {[%clk 0:04:30]} 63... Rxe4 {[%clk
0:00:48.4]} 64. fxe4+ {[%clk 0:04:30.2]} 64... Kxe4 {[%clk 0:00:50.3]} 65. Rb3
{[%clk 0:04:29.4]} 65... Ra8 {[%clk 0:00:49.8]} 66. a6 {[%clk 0:04:30.5]} 66...
f3 {[%clk 0:00:50.7]} 67. Kd1 {[%clk 0:04:28.6]} 67... d5 {[%clk 0:00:29.2]} 68.
a7 {[%clk 0:04:26.3]} 68... Be5 {[%clk 0:00:27.8]} 69. cxd5 {[%clk 0:04:21.1]}
69... c4 {[%clk 0:00:29.7]} 70. Rb7 {[%clk 0:04:16.7]} 70... Kxd5 {[%clk
0:00:22.5]} 71. g6 {[%clk 0:04:13.4]} 71... c3 {[%clk 0:00:21]} 72. g7 {[%clk
0:04:13.5]} 72... Kc6 {[%clk 0:00:18.1]} 73. Rb8 {[%clk 0:04:09.7]} 73... f2
{[%clk 0:00:14.2]} 74. Ke2 {[%clk 0:04:08]} 74... f1=Q+ {[%clk 0:00:03.6]} 75.
Kxf1 {[%clk 0:04:00.7]} 75... Bxb8 {[%clk 0:00:05.5]} 76. axb8=Q {[%clk
0:03:54.4]} 76... Rxb8 {[%clk 0:00:06.5]} 0-1

[Event "GrandPrix_29.05"]
[Site "Chess.com"]
[Date "2020.05.29"]
[Round "5"]
[White "Nitzan_Steinberg"]
[Black "Tormoz"]
[Result "1/2-1/2"]
[WhiteElo "2200"]
[BlackElo "2444"]
[TimeControl "600+2"]
[EndTime "11:35:06 PDT"]
[Termination "Game drawn by repetition"]

1. e4 {[%clk 0:10:01.9]} 1... e6 {[%clk 0:09:58.5]} 2. d4 {[%clk 0:09:57.7]}
2... d5 {[%clk 0:09:59.3]} 3. Nc3 {[%clk 0:09:58.9]} 3... Nf6 {[%clk 0:09:59.5]}
4. e5 {[%clk 0:09:58.5]} 4... Nfd7 {[%clk 0:10:00.1]} 5. f4 {[%clk 0:10:00.1]}
5... c5 {[%clk 0:10:01.7]} 6. Nf3 {[%clk 0:10:01.6]} 6... Nc6 {[%clk 0:10:03.3]}
7. Be3 {[%clk 0:10:03]} 7... Qb6 {[%clk 0:10:04.9]} 8. Na4 {[%clk 0:09:48.2]}
8... Qa5+ {[%clk 0:10:05.6]} 9. c3 {[%clk 0:09:49.6]} 9... b6 {[%clk 0:10:06.2]}
10. a3 {[%clk 0:08:27.2]} 10... c4 {[%clk 0:09:47]} 11. b4 {[%clk 0:08:27.6]}
11... cxb3 {[%clk 0:09:47.9]} 12. Qxb3 {[%clk 0:08:28.2]} 12... Ba6 {[%clk
0:09:48.8]} 13. Nb2 {[%clk 0:08:19.4]} 13... Rc8 {[%clk 0:09:35]} 14. Kf2 {[%clk
0:07:29.2]} 14... Bxf1 {[%clk 0:09:20.7]} 15. Rhxf1 {[%clk 0:07:29.9]} 15... Qa6
{[%clk 0:09:07.4]} 16. a4 {[%clk 0:06:48.7]} 16... Be7 {[%clk 0:08:08]} 17. Qb5
{[%clk 0:06:25.3]} 17... Qb7 {[%clk 0:07:43]} 18. Kg1 {[%clk 0:06:16.6]} 18...
O-O {[%clk 0:07:42.6]} 19. f5 {[%clk 0:05:45.1]} 19... Na5 {[%clk 0:07:06.9]}
20. Bg5 {[%clk 0:05:37.3]} 20... Rfe8 {[%clk 0:06:23.4]} 21. f6 {[%clk
0:05:12.4]} 21... Bf8 {[%clk 0:05:53]} 22. fxg7 {[%clk 0:05:12.6]} 22... Bxg7
{[%clk 0:05:54.9]} 23. Qd3 {[%clk 0:05:10.2]} 23... Rc7 {[%clk 0:05:38.6]} 24.
h4 {[%clk 0:04:57.4]} 24... Rec8 {[%clk 0:05:33.3]} 25. Bd2 {[%clk 0:04:58.1]}
25... Nb3 {[%clk 0:05:28.6]} 26. h5 {[%clk 0:04:15]} 26... h6 {[%clk 0:05:21.8]}
27. Nh2 {[%clk 0:03:55]} 27... Nxa1 {[%clk 0:03:59.1]} 28. Rxa1 {[%clk
0:03:56.9]} 28... f5 {[%clk 0:03:56.6]} 29. Qg3 {[%clk 0:03:42.9]} 29... Kh8
{[%clk 0:03:45.8]} 30. Nf3 {[%clk 0:03:34.7]} 30... Rg8 {[%clk 0:03:27]} 31. Qf2
{[%clk 0:03:13.8]} 31... Nf8 {[%clk 0:03:12.1]} 32. Nd3 {[%clk 0:03:13.7]} 32...
Kh7 {[%clk 0:03:03.4]} 33. Nf4 {[%clk 0:03:11.8]} 33... Bh8 {[%clk 0:03:03.6]}
34. Nh4 {[%clk 0:03:10.1]} 34... Qc6 {[%clk 0:02:43.1]} 35. a5 {[%clk
0:02:55.2]} 35... b5 {[%clk 0:02:41.8]} 36. a6 {[%clk 0:02:54.6]} 36... Rg4
{[%clk 0:02:33]} 37. Nhg6 {[%clk 0:02:45.6]} 37... Nxg6 {[%clk 0:02:33.7]} 38.
Nxg6 {[%clk 0:02:45.3]} 38... Bg7 {[%clk 0:02:29]} 39. Qe2 {[%clk 0:02:21.3]}
39... Qc4 {[%clk 0:02:17.7]} 40. Qxc4 {[%clk 0:02:19.3]} 40... Rxc4 {[%clk
0:02:08.9]} 41. Bf4 {[%clk 0:01:53.9]} 41... Rxc3 {[%clk 0:01:52.3]} 42. Rb1
{[%clk 0:01:54]} 42... Rxg6 {[%clk 0:01:48.2]} 43. hxg6+ {[%clk 0:01:54]} 43...
Kxg6 {[%clk 0:01:50.1]} 44. Rxb5 {[%clk 0:01:41.6]} 44... Ra3 {[%clk 0:01:51]}
45. Rb8 {[%clk 0:01:41.8]} 45... Rxa6 {[%clk 0:01:51]} 46. Kf2 {[%clk
0:01:38.7]} 46... Rb6 {[%clk 0:01:35.7]} 47. Ra8 {[%clk 0:01:35.6]} 47... Rb7
{[%clk 0:01:36.4]} 48. Kg3 {[%clk 0:01:32.5]} 48... Kf7 {[%clk 0:01:29.1]} 49.
Kh4 {[%clk 0:01:33.4]} 49... Bf8 {[%clk 0:01:25.1]} 50. Kh5 {[%clk 0:01:34]}
50... Be7 {[%clk 0:01:25.7]} 51. Rh8 {[%clk 0:01:05.3]} 51... a5 {[%clk
0:00:47.3]} 52. Rh7+ {[%clk 0:00:50.8]} 52... Ke8 {[%clk 0:00:43.8]} 53. Kg6
{[%clk 0:00:47.1]} 53... a4 {[%clk 0:00:36.6]} 54. Rh8+ {[%clk 0:00:47.6]} 54...
Kd7 {[%clk 0:00:37]} 55. Ra8 {[%clk 0:00:48.5]} 55... a3 {[%clk 0:00:38.1]} 56.
Bc1 {[%clk 0:00:49.2]} 56... Rb3 {[%clk 0:00:36]} 57. Ra7+ {[%clk 0:00:43.4]}
57... Ke8 {[%clk 0:00:36.3]} 58. Ra8+ {[%clk 0:00:44.3]} 58... Bd8 {[%clk
0:00:23.1]} 59. Rxa3 {[%clk 0:00:24]} 59... Rxa3 {[%clk 0:00:23.8]} 60. Bxa3
{[%clk 0:00:25.9]} 60... Bg5 {[%clk 0:00:25]} 61. Bc5 {[%clk 0:00:20.5]} 61...
Kd7 {[%clk 0:00:21.9]} 62. Kf7 {[%clk 0:00:11.3]} 62... Be3 {[%clk 0:00:22.6]}
63. Kg6 {[%clk 0:00:12.2]} 63... Bc1 {[%clk 0:00:20.6]} 64. Kh5 {[%clk
0:00:12.6]} 64... Bd2 {[%clk 0:00:21.2]} 65. Kg6 {[%clk 0:00:13.7]} 65... Be3
{[%clk 0:00:22.1]} 66. Kh5 {[%clk 0:00:14.2]} 66... Bg5 {[%clk 0:00:17.9]} 67.
Kg6 {[%clk 0:00:13.5]} 67... Ke8 {[%clk 0:00:19.4]} 68. Bd6 {[%clk 0:00:12.3]}
68... Be3 {[%clk 0:00:18.5]} 69. Bc5 {[%clk 0:00:13.4]} 69... Bd2 {[%clk
0:00:17.4]} 70. Bd6 {[%clk 0:00:12.6]} 70... Bc1 {[%clk 0:00:18.3]} 71. Bc5
{[%clk 0:00:13.7]} 71... Be3 {[%clk 0:00:19]} 72. Kf6 {[%clk 0:00:12.9]} 72...
Kd7 {[%clk 0:00:19.8]} 73. Kg6 {[%clk 0:00:13.3]} 73... Bf4 {[%clk 0:00:19.9]}
74. Kh5 {[%clk 0:00:13.7]} 74... Bg5 {[%clk 0:00:19.3]} 75. Kg6 {[%clk
0:00:14.3]} 75... Be3 {[%clk 0:00:19.2]} 76. Kh5 {[%clk 0:00:14.8]} 76... f4
{[%clk 0:00:19.9]} 77. Kg6 {[%clk 0:00:11.4]} 77... Kc6 {[%clk 0:00:18.1]} 78.
Kf6 {[%clk 0:00:10]} 78... Kd7 {[%clk 0:00:17.5]} 79. Kg6 {[%clk 0:00:11.1]}
79... Ke8 {[%clk 0:00:15.1]} 80. Bb6 {[%clk 0:00:10.2]} 80... Kd7 {[%clk
0:00:13.8]} 81. Bc5 {[%clk 0:00:11.3]} 1/2-1/2

[Event "GrandPrix_29.05"]
[Site "Chess.com"]
[Date "2020.05.29"]
[Round "5"]
[White "Volodar_Murzin"]
[Black "szachuspl"]
[Result "1/2-1/2"]
[WhiteElo "2477"]
[BlackElo "2354"]
[TimeControl "600+2"]
[EndTime "11:35:18 PDT"]
[Termination "Game drawn by agreement"]

1. e4 {[%clk 0:10:01.6]} 1... c5 {[%clk 0:09:59.7]} 2. Nf3 {[%clk 0:10:02.1]}
2... e6 {[%clk 0:10:00.1]} 3. g3 {[%clk 0:10:00.8]} 3... b6 {[%clk 0:09:52.3]}
4. Bg2 {[%clk 0:10:00.4]} 4... Bb7 {[%clk 0:09:53.7]} 5. d3 {[%clk 0:10:00.4]}
5... d6 {[%clk 0:09:51.3]} 6. O-O {[%clk 0:10:00.5]} 6... Nd7 {[%clk 0:09:50.9]}
7. Re1 {[%clk 0:09:57.2]} 7... g6 {[%clk 0:09:49.6]} 8. Nc3 {[%clk 0:09:50]}
8... Bg7 {[%clk 0:09:49.9]} 9. Bf4 {[%clk 0:09:44.3]} 9... Ne5 {[%clk
0:09:43.4]} 10. Qd2 {[%clk 0:08:38.4]} 10... Ne7 {[%clk 0:09:42.1]} 11. Bh6
{[%clk 0:08:31]} 11... O-O {[%clk 0:09:39.3]} 12. Rad1 {[%clk 0:08:14.6]} 12...
N7c6 {[%clk 0:09:32.6]} 13. Ne2 {[%clk 0:07:51]} 13... Rc8 {[%clk 0:09:12.9]}
14. Bxg7 {[%clk 0:07:34.5]} 14... Kxg7 {[%clk 0:09:13.5]} 15. c3 {[%clk
0:07:31.5]} 15... Ba6 {[%clk 0:08:08.7]} 16. Nc1 {[%clk 0:06:03.8]} 16... Qf6
{[%clk 0:08:00.6]} 17. Qe3 {[%clk 0:05:57.4]} 17... Ng4 {[%clk 0:07:55.4]} 18.
Qe2 {[%clk 0:05:50.7]} 18... h5 {[%clk 0:07:23.4]} 19. h3 {[%clk 0:05:29.5]}
19... Nge5 {[%clk 0:07:24]} 20. Nxe5 {[%clk 0:05:30.6]} 20... dxe5 {[%clk
0:07:23.6]} 21. h4 {[%clk 0:05:31.5]} 21... Rcd8 {[%clk 0:07:15.8]} 22. Qe3
{[%clk 0:05:30.3]} 22... Rd6 {[%clk 0:07:05.2]} 23. Rd2 {[%clk 0:05:27.4]} 23...
Rfd8 {[%clk 0:07:05.9]} 24. Red1 {[%clk 0:05:28.7]} 24... R8d7 {[%clk
0:07:03.5]} 25. Bf1 {[%clk 0:05:20.5]} 25... Qd8 {[%clk 0:07:03.3]} 26. Be2
{[%clk 0:05:21]} 26... Na5 {[%clk 0:06:40.6]} 27. b3 {[%clk 0:04:36]} 27... Nc6
{[%clk 0:06:41.2]} 28. Rf1 {[%clk 0:04:14.1]} 28... c4 {[%clk 0:06:22.3]} 29.
bxc4 {[%clk 0:03:58]} 29... Bxc4 {[%clk 0:05:58.7]} 30. Rb2 {[%clk 0:03:55.6]}
30... Ba6 {[%clk 0:05:54]} 31. Kg2 {[%clk 0:01:49.3]} 31... Na5 {[%clk
0:05:48.5]} 32. Rh1 {[%clk 0:01:46.2]} 32... Nb7 {[%clk 0:05:32.4]} 33. f4
{[%clk 0:01:22.1]} 33... exf4 {[%clk 0:05:25.3]} 34. gxf4 {[%clk 0:01:22.2]}
34... Nc5 {[%clk 0:04:58.7]} 35. d4 {[%clk 0:01:12.9]} 35... Na4 {[%clk
0:04:49.2]} 36. Rb4 {[%clk 0:00:53.2]} 36... Bxe2 {[%clk 0:04:45.5]} 37. Nxe2
{[%clk 0:00:55.1]} 37... b5 {[%clk 0:04:38.1]} 38. Rxb5 {[%clk 0:00:56.3]} 38...
Nb6 {[%clk 0:04:39.1]} 39. Qg3 {[%clk 0:00:46.5]} 39... Qa8 {[%clk 0:04:25.1]}
40. Qf3 {[%clk 0:00:47.1]} 40... Nc4 {[%clk 0:04:21.1]} 41. e5 {[%clk
0:00:30.4]} 41... Qxf3+ {[%clk 0:04:18.8]} 42. Kxf3 {[%clk 0:00:31]} 42... Ra6
{[%clk 0:04:19.5]} 43. Ra1 {[%clk 0:00:28.3]} 43... Ra3 {[%clk 0:04:13.4]} 44.
Ke4 {[%clk 0:00:20.2]} 44... Rc7 {[%clk 0:03:33.7]} 45. Kd3 {[%clk 0:00:12.5]}
45... Nb6 {[%clk 0:03:28.6]} 46. Rb3 {[%clk 0:00:11.2]} 46... Ra4 {[%clk
0:03:28.7]} 47. Rb4 {[%clk 0:00:09.2]} 47... Ra3 {[%clk 0:03:14.8]} 48. Rb3
{[%clk 0:00:07]} 48... Ra5 {[%clk 0:03:15.8]} 49. a3 {[%clk 0:00:06]} 49... Kf8
{[%clk 0:03:06.9]} 50. Rb4 {[%clk 0:00:05.2]} 50... Nd5 {[%clk 0:03:02.7]} 51.
Rb8+ {[%clk 0:00:05.9]} 51... Ke7 {[%clk 0:03:03.5]} 52. c4 {[%clk 0:00:07.2]}
52... Nb6 {[%clk 0:03:01.6]} 53. c5 {[%clk 0:00:08.5]} 53... Nd5 {[%clk
0:03:00.4]} 54. a4 {[%clk 0:00:09.9]} 54... Rc6 {[%clk 0:02:57.8]} 55. Rb5
{[%clk 0:00:09.6]} 55... Raa6 {[%clk 0:02:44.6]} 56. a5 {[%clk 0:00:08.5]} 56...
Rc7 {[%clk 0:02:45.9]} 57. Ke4 {[%clk 0:00:07.4]} 57... Rd7 {[%clk 0:02:41.6]}
58. Rb8 {[%clk 0:00:06.8]} 58... Rc7 {[%clk 0:02:06.1]} 59. Rb3 {[%clk 0:00:08]}
59... Rd7 {[%clk 0:02:02]} 60. Ra4 {[%clk 0:00:06.4]} 60... Rc6 {[%clk
0:01:50.8]} 61. Nc3 {[%clk 0:00:03.3]} 61... Nxc3+ {[%clk 0:01:40.1]} 62. Rxc3
{[%clk 0:00:05.2]} 62... Rb7 {[%clk 0:01:41.4]} 63. d5 {[%clk 0:00:05.3]} 63...
exd5+ {[%clk 0:01:39.8]} 64. Kxd5 {[%clk 0:00:07.2]} 64... Kd7 {[%clk
0:01:33.8]} 65. Rd4 {[%clk 0:00:06.2]} 65... Kc7 {[%clk 0:01:28.1]} 66. Kc4
{[%clk 0:00:05.3]} 66... Rb1 {[%clk 0:01:29]} 67. Rd6 {[%clk 0:00:06.1]} 67...
Rf1 {[%clk 0:00:56.8]} 68. Rd4 {[%clk 0:00:06.5]} 68... a6 {[%clk 0:00:57]} 69.
Kd5 {[%clk 0:00:05]} 69... Rh1 {[%clk 0:00:54.7]} 70. Rb3 {[%clk 0:00:05.7]}
70... Rc1 {[%clk 0:00:52.8]} 71. Rc4 {[%clk 0:00:06.7]} 71... Rd1+ {[%clk
0:00:51.8]} 72. Ke4 {[%clk 0:00:08.2]} 72... Re1+ {[%clk 0:00:51.3]} 73. Kf3
{[%clk 0:00:08.5]} 73... Ra1 {[%clk 0:00:52.4]} 74. Rbc3 {[%clk 0:00:08.2]}
74... Rxa5 {[%clk 0:00:53.1]} 75. Ke4 {[%clk 0:00:09.7]} 75... Ra1 {[%clk
0:00:53]} 76. Kd5 {[%clk 0:00:09.5]} 76... Rd1+ {[%clk 0:00:53.4]} 77. Rd4
{[%clk 0:00:09.9]} 77... Ra1 {[%clk 0:00:52.8]} 78. Rdd3 {[%clk 0:00:06.7]}
78... Ra4 {[%clk 0:00:50.8]} 79. Rd4 {[%clk 0:00:07.3]} 79... Ra5 {[%clk
0:00:52]} 80. f5 {[%clk 0:00:06.1]} 80... gxf5 {[%clk 0:00:50.3]} 81. Rf4 {[%clk
0:00:07.5]} 81... Ra1 {[%clk 0:00:39.5]} 82. Rxf5 {[%clk 0:00:08.6]} 82... Rd1+
{[%clk 0:00:40.4]} 83. Kc4 {[%clk 0:00:10.1]} 83... Rd7 {[%clk 0:00:39.9]} 84.
Rcf3 {[%clk 0:00:10.6]} 84... Re6 {[%clk 0:00:37.9]} 85. Rxh5 {[%clk 0:00:09.6]}
85... Kc6 {[%clk 0:00:37.2]} 86. Rf6 {[%clk 0:00:08]} 86... Rd5 {[%clk
0:00:37.6]} 87. Rxf7 {[%clk 0:00:06.6]} 87... Rxc5+ {[%clk 0:00:38.1]} 88. Kb4
{[%clk 0:00:07.8]} 88... Rcxe5 {[%clk 0:00:38.4]} 89. Rxe5 {[%clk 0:00:08.7]}
89... Rxe5 {[%clk 0:00:39.7]} 90. Ka4 {[%clk 0:00:09.2]} 1/2-1/2

[Event "GrandPrix_29.05"]
[Site "Chess.com"]
[Date "2020.05.29"]
[Round "5"]
[White "PlayChessSimple"]
[Black "Khvicha_Supatashvili"]
[Result "1/2-1/2"]
[WhiteElo "2251"]
[BlackElo "2167"]
[TimeControl "600+2"]
[EndTime "11:35:20 PDT"]
[Termination "Game drawn by repetition"]

1. e4 {[%clk 0:10:01.9]} 1... c5 {[%clk 0:09:59.3]} 2. Nf3 {[%clk 0:09:58.8]}
2... Nc6 {[%clk 0:09:59.3]} 3. c3 {[%clk 0:09:58.7]} 3... Nf6 {[%clk 0:09:57.8]}
4. e5 {[%clk 0:09:59.4]} 4... Nd5 {[%clk 0:09:59]} 5. Bc4 {[%clk 0:10:01]} 5...
Nb6 {[%clk 0:09:58.7]} 6. Bb3 {[%clk 0:10:01.7]} 6... d5 {[%clk 0:09:58.8]} 7.
exd6 {[%clk 0:10:01]} 7... Qxd6 {[%clk 0:09:51.9]} 8. Na3 {[%clk 0:10:00.1]}
8... a6 {[%clk 0:09:18.2]} 9. O-O {[%clk 0:10:00]} 9... Bf5 {[%clk 0:08:43.5]}
10. d4 {[%clk 0:09:57.6]} 10... cxd4 {[%clk 0:08:02.1]} 11. Nxd4 {[%clk
0:09:58]} 11... Nxd4 {[%clk 0:08:00.4]} 12. cxd4 {[%clk 0:09:58.6]} 12... e6
{[%clk 0:08:01.5]} 13. Qf3 {[%clk 0:09:54.4]} 13... Be7 {[%clk 0:07:13.5]} 14.
Qxb7 {[%clk 0:09:15.8]} 14... O-O {[%clk 0:07:12.6]} 15. Be3 {[%clk 0:08:52]}
15... Nd5 {[%clk 0:06:35.9]} 16. Nc4 {[%clk 0:08:45.8]} 16... Qd8 {[%clk
0:06:30.7]} 17. Ne5 {[%clk 0:08:40.8]} 17... Bd6 {[%clk 0:04:46.9]} 18. Bxd5
{[%clk 0:08:26.9]} 18... Rb8 {[%clk 0:04:39.4]} 19. Qxa6 {[%clk 0:06:00]} 19...
exd5 {[%clk 0:04:37.5]} 20. Bf4 {[%clk 0:04:55.2]} 20... Rb6 {[%clk 0:03:52.8]}
21. Qa5 {[%clk 0:04:53.8]} 21... Bb8 {[%clk 0:03:01.3]} 22. Bg3 {[%clk
0:03:30.2]} 22... h5 {[%clk 0:02:55.8]} 23. Rac1 {[%clk 0:03:12.5]} 23... Bxe5
{[%clk 0:02:34.9]} 24. Bxe5 {[%clk 0:02:50.7]} 24... Rxb2 {[%clk 0:02:35.1]} 25.
Qa3 {[%clk 0:02:15]} 25... Qb6 {[%clk 0:02:05.8]} 26. Qg3 {[%clk 0:02:07.5]}
26... Qg6 {[%clk 0:02:01.2]} 27. a4 {[%clk 0:01:58.2]} 27... Bd3 {[%clk
0:01:47.1]} 28. Rfd1 {[%clk 0:01:48.5]} 28... Qxg3 {[%clk 0:01:42.3]} 29. hxg3
{[%clk 0:01:48]} 29... Bc4 {[%clk 0:01:42.1]} 30. Ra1 {[%clk 0:01:46.5]} 30...
f6 {[%clk 0:01:39.8]} 31. Bc7 {[%clk 0:01:38.3]} 31... Re8 {[%clk 0:01:38.7]}
32. Re1 {[%clk 0:01:32.5]} 32... Rxe1+ {[%clk 0:01:34.1]} 33. Rxe1 {[%clk
0:01:33.1]} 33... Ra2 {[%clk 0:01:18.2]} 34. a5 {[%clk 0:01:33]} 34... Kf7
{[%clk 0:01:18.4]} 35. Bb6 {[%clk 0:01:30.2]} 35... g5 {[%clk 0:01:18.1]} 36.
Bd8 {[%clk 0:01:11.3]} 36... Be2 {[%clk 0:00:46.6]} 37. a6 {[%clk 0:01:02]}
37... Bxa6 {[%clk 0:00:45.2]} 38. Re7+ {[%clk 0:01:02.8]} 38... Kg6 {[%clk
0:00:43.8]} 39. Re6 {[%clk 0:01:03.7]} 39... Bd3 {[%clk 0:00:39.4]} 40. Rxf6+
{[%clk 0:01:04.6]} 40... Kg7 {[%clk 0:00:40.2]} 41. Rd6 {[%clk 0:01:02]} 41...
h4 {[%clk 0:00:41]} 42. gxh4 {[%clk 0:00:57.7]} 42... gxh4 {[%clk 0:00:41.3]}
43. Bxh4 {[%clk 0:00:55.6]} 43... Bc4 {[%clk 0:00:40.8]} 44. Kh2 {[%clk
0:00:51.8]} 44... Rd2 {[%clk 0:00:37.8]} 45. Bg3 {[%clk 0:00:51.8]} 45... Kf7
{[%clk 0:00:37.9]} 46. Be5 {[%clk 0:00:40.3]} 46... Rxf2 {[%clk 0:00:38.4]} 47.
Kg3 {[%clk 0:00:41.5]} 47... Rc2 {[%clk 0:00:37.5]} 48. Rf6+ {[%clk 0:00:38.3]}
48... Ke7 {[%clk 0:00:37.7]} 49. Kh3 {[%clk 0:00:34.8]} 49... Rc3+ {[%clk
0:00:35.6]} 50. Kh4 {[%clk 0:00:33.4]} 50... Ra3 {[%clk 0:00:25.1]} 51. g4
{[%clk 0:00:33.7]} 51... Ra6 {[%clk 0:00:24.9]} 52. Rf4 {[%clk 0:00:29.9]} 52...
Bd3 {[%clk 0:00:24.3]} 53. Kh5 {[%clk 0:00:27.5]} 53... Be4 {[%clk 0:00:22.9]}
54. g5 {[%clk 0:00:25.6]} 54... Ra2 {[%clk 0:00:21.7]} 55. Rf6 {[%clk
0:00:22.5]} 55... Rg2 {[%clk 0:00:17.8]} 56. Rb6 {[%clk 0:00:21]} 56... Rg1
{[%clk 0:00:17.5]} 57. Rb7+ {[%clk 0:00:20]} 57... Ke6 {[%clk 0:00:18.5]} 58.
Rb6+ {[%clk 0:00:21.3]} 58... Ke7 {[%clk 0:00:18.7]} 59. g6 {[%clk 0:00:20.4]}
59... Rh1+ {[%clk 0:00:18.9]} 60. Kg5 {[%clk 0:00:21.3]} 60... Rg1+ {[%clk
0:00:17.7]} 61. Kh6 {[%clk 0:00:22.3]} 61... Rh1+ {[%clk 0:00:18.5]} 62. Kg7
{[%clk 0:00:23.1]} 62... Rg1 {[%clk 0:00:19.8]} 63. Rb7+ {[%clk 0:00:22]} 63...
Ke6 {[%clk 0:00:20.5]} 64. Rb6+ {[%clk 0:00:23]} 64... Ke7 {[%clk 0:00:21.2]}
65. Bf6+ {[%clk 0:00:23.8]} 65... Ke8 {[%clk 0:00:20.8]} 66. Bh4 {[%clk
0:00:21.8]} 66... Rg4 {[%clk 0:00:19.5]} 67. Re6+ {[%clk 0:00:20.6]} 67... Kd7
{[%clk 0:00:20.2]} 68. Re7+ {[%clk 0:00:20.9]} 68... Kd6 {[%clk 0:00:21]} 69.
Bf6 {[%clk 0:00:12.5]} 69... Rxg6+ {[%clk 0:00:20.4]} 70. Kf7 {[%clk 0:00:13.6]}
70... Rg2 {[%clk 0:00:20.5]} 71. Re6+ {[%clk 0:00:14.4]} 71... Kd7 {[%clk
0:00:21.1]} 72. Re7+ {[%clk 0:00:15.2]} 72... Kc6 {[%clk 0:00:22.5]} 73. Re6+
{[%clk 0:00:15.8]} 73... Kb5 {[%clk 0:00:23.8]} 74. Ke7 {[%clk 0:00:15.4]} 74...
Kc4 {[%clk 0:00:23.9]} 75. Kd6 {[%clk 0:00:15.6]} 75... Ra2 {[%clk 0:00:23.9]}
76. Be5 {[%clk 0:00:15.5]} 76... Ra6+ {[%clk 0:00:23.8]} 77. Ke7 {[%clk
0:00:16.5]} 77... Ra7+ {[%clk 0:00:25]} 78. Kf6 {[%clk 0:00:16.9]} 78... Rh7
{[%clk 0:00:26]} 79. Re7 {[%clk 0:00:17.2]} 79... Rh6+ {[%clk 0:00:26.3]} 80.
Kg5 {[%clk 0:00:17.9]} 80... Rh1 {[%clk 0:00:26.2]} 81. Rc7+ {[%clk 0:00:18.1]}
81... Kd3 {[%clk 0:00:26.3]} 82. Ra7 {[%clk 0:00:18.9]} 82... Rg1+ {[%clk
0:00:26.5]} 83. Kf6 {[%clk 0:00:18.9]} 83... Rg6+ {[%clk 0:00:27.3]} 84. Kf7
{[%clk 0:00:19.4]} 84... Rc6 {[%clk 0:00:28.3]} 85. Ra3+ {[%clk 0:00:19.9]}
85... Rc3 {[%clk 0:00:29.2]} 86. Rxc3+ {[%clk 0:00:20.6]} 86... Kxc3 {[%clk
0:00:30]} 87. Kf6 {[%clk 0:00:21.8]} 87... Kc4 {[%clk 0:00:30.6]} 88. Ke6 {[%clk
0:00:22.4]} 88... Kd3 {[%clk 0:00:31.5]} 89. Kf6 {[%clk 0:00:23.6]} 89... Kc4
{[%clk 0:00:32.1]} 90. Ke6 {[%clk 0:00:24.9]} 90... Kb5 {[%clk 0:00:32.3]} 91.
Kf6 {[%clk 0:00:26.1]} 91... Kc4 {[%clk 0:00:33.3]} 1/2-1/2